fUSD/lending_fUSD_20250702
["ID","MTS","AMOUNT","RATE_DAILY","PERIOD"]
[369035174,1751440259837,-1250.25,0.00016863,2]
[369035175,1751440259846,-1914.03,0.00016863,2]
[369035176,1751440259855,-490.0,0.00016863,2]
[369035177,1751440259865,-1993.68,0.00016863,2]
[369035178,1751440259875,-17219.02,0.00016863,2]
[369035179,1751440259884,-490.0,0.00016863,2]
[369035180,1751440259893,-1137.38,0.00016863,2]
[369035181,1751440259903,-1391.37,0.00016863,2]
[369035182,1751440259912,-490.0,0.00016863,2]
[369035183,1751440259922,-922.91,0.00016863,2]
[369035184,1751440259932,-490.0,0.00016863,2]
[369035185,1751440259942,-495.82,0.00016863,2]
[369035186,1751440259951,-490.0,0.00016866,2]
[369035187,1751440259961,-490.0,0.00016866,2]
[369035188,1751440259970,-490.0,0.00016866,2]
[369035189,1751440259979,-490.0,0.00016866,2]
[369035190,1751440259989,-490.0,0.00016866,2]
[369035191,1751440259998,-783.84,0.00016866,2]
[369035192,1751440260008,-6492.95,0.00016866,2]
[369035193,1751440260018,-795.16,0.00016866,2]
[369035194,1751440260027,-932.1,0.00016866,2]
[369035195,1751440260036,-1185.18,0.00016866,2]
[369035196,1751440260046,-840.01,0.00016866,2]
[369035197,1751440260056,-664.12,0.00016866,2]
[369035198,1751440260066,-1710.83,0.00016866,2]
[369035199,1751440260075,-1241.43,0.00016866,2]
[369035200,1751440260085,-1558.79,0.00016866,2]
[369035201,1751440260094,-7248.5,0.00016866,2]
[369035202,1751440260104,-1882.2,0.00016866,2]
[369035203,1751440260113,-1280.33,0.00016866,2]
[369035204,1751440260122,-490.0,0.00016866,2]
[369035205,1751440260132,-490.0,0.00016866,2]
[369035206,1751440260141,-1593.14,0.00016866,2]
[369035207,1751440260151,-1292.3,0.00016866,2]
[369035208,1751440260160,-1321.65,0.00016866,2]
[369035209,1751440260171,-907.22,0.00016866,2]
[369035210,1751440260182,-490.0,0.00016866,2]
[369035211,1751440260192,-8649.13,0.00016866,2]
[369035212,1751440260201,-764.41,0.00016866,2]
[369035213,1751440260211,-1006.6,0.00016866,2]
[369035214,1751440260220,-1465.19,0.00016866,2]
[369035215,1751440260230,-4804.0,0.00016866,2]
[369035216,1751440260240,-490.0,0.00016867,2]
[369035217,1751440260249,-490.0,0.00016867,2]
[369035218,1751440260258,-1000.0,0.00016867,2]
[369035219,1751440260267,-490.0,0.00016867,2]
[369035220,1751440260277,-490.0,0.00016867,2]
[369035221,1751440260286,-490.0,0.00016867,2]
[369035222,1751440260296,-490.0,0.00016867,2]
[369035223,1751440260305,-490.0,0.00016867,2]
[369035224,1751440260315,-490.0,0.00016867,2]
[369035225,1751440260324,-490.0,0.00016867,2]
[369035226,1751440260336,-490.0,0.00016867,2]
[369035227,1751440260345,-490.0,0.00016867,2]
[369035228,1751440260355,-490.0,0.00016867,2]
[369035229,1751440260363,-490.0,0.00016867,2]
[369035230,1751440260372,-177.44125519,0.00016867,2]
[369035231,1751440260381,-490.0,0.00016867,2]
[369035232,1751440260391,-490.0,0.00016867,2]
[369035233,1751440260400,-451.37138433,0.00016867,2]
[369035234,1751440260409,-490.0,0.00016867,2]
[369035235,1751440260418,-490.0,0.00016867,2]
[369035236,1751440260427,-490.0,0.00016867,2]
[369035237,1751440260437,-490.0,0.00016867,2]
[369035238,1751440260446,-490.0,0.00016867,2]
[369035239,1751440260455,-490.0,0.00016867,2]
[369035240,1751440260465,-490.0,0.00016867,2]
[369035241,1751440260474,-490.0,0.00016867,2]
[369035242,1751440260483,-490.0,0.00016867,2]
[369035243,1751440260494,-490.0,0.00016867,2]
[369035244,1751440260504,-490.0,0.00016867,2]
[369035245,1751440260515,-490.0,0.00016867,2]
[369035246,1751440260526,-490.0,0.00016867,2]
[369035247,1751440260536,-490.0,0.00016867,2]
[369035248,1751440260546,-490.0,0.00016867,2]
[369035249,1751440260555,-559.27,0.00016867,2]
[369035250,1751440260567,-490.0,0.00016867,2]
[369035251,1751440260577,-490.0,0.00016867,2]
[369035252,1751440260586,-490.0,0.00016867,2]
[369035253,1751440260596,-490.0,0.00016867,2]
[369035254,1751440260605,-490.0,0.00016867,2]
[369035255,1751440260615,-490.0,0.00016867,2]
[369035256,1751440260624,-490.0,0.00016867,2]
[369035257,1751440260635,-490.0,0.00016867,2]
[369035258,1751440260645,-489.53890592,0.00016867,2]
[369035259,1751440260655,-490.0,0.00016867,2]
[369035260,1751440260664,-490.0,0.00016867,2]
[369035261,1751440260674,-540.95,0.00016867,2]
[369035262,1751440260683,-490.0,0.00016867,2]
[369035263,1751440260693,-490.0,0.00016867,2]
[369035264,1751440260702,-490.0,0.00016867,2]
[369035265,1751440260711,-490.0,0.00016867,2]
[369035266,1751440260721,-490.0,0.00016867,2]
[369035267,1751440260733,-490.0,0.00016867,2]
[369035268,1751440260743,-490.0,0.00016867,2]
[369035269,1751440260752,-490.0,0.00016867,2]
[369035270,1751440260761,-490.0,0.00016867,2]
[369035271,1751440260770,-490.0,0.00016867,2]
[369035272,1751440260780,-490.0,0.00016867,2]
[369035273,1751440260789,-490.0,0.00016867,2]
[369035274,1751440260799,-490.65,0.00016867,2]
[369035275,1751440260808,-490.0,0.00016867,2]
[369035276,1751440260818,-490.0,0.00016867,2]
[369035277,1751440260827,-923.28,0.00016867,2]
[369035278,1751440260837,-490.0,0.00016867,2]
[369035279,1751440260847,-490.0,0.00016867,2]
[369035280,1751440260856,-490.0,0.00016867,2]
[369035281,1751440260866,-490.0,0.00016867,2]
[369035282,1751440260875,-490.0,0.00016867,2]
[369035283,1751440260884,-540.62,0.00016867,2]
[369035284,1751440260894,-490.0,0.00016867,2]
[369035285,1751440260904,-490.0,0.00016867,2]
[369035286,1751440260914,-490.0,0.00016867,2]
[369035287,1751440260923,-642.16,0.00016867,2]
[369035288,1751440260932,-490.0,0.00016867,2]
[369035289,1751440260942,-490.0,0.00016867,2]
[369035290,1751440260952,-490.0,0.00016867,2]
[369035291,1751440260961,-872.59,0.00016867,2]
[369035292,1751440260971,-490.0,0.00016867,2]
[369035293,1751440260980,-490.0,0.00016867,2]
[369035294,1751440260989,-490.0,0.00016867,2]
[369035295,1751440260999,-490.0,0.00016867,2]
[369035296,1751440261008,-490.0,0.00016867,2]
[369035297,1751440261018,-490.0,0.00016867,2]
[369035298,1751440261027,-490.0,0.00016867,2]
[369035299,1751440261036,-490.0,0.00016867,2]
[369035300,1751440261046,-350.02,0.00016867,2]
[369035301,1751440261055,-490.0,0.00016867,2]
[369035302,1751440261064,-490.0,0.00016867,2]
[369035303,1751440261073,-490.0,0.00016867,2]
[369035304,1751440261082,-735.88,0.00016867,2]
[369035305,1751440261091,-490.0,0.00016867,2]
[369035306,1751440261101,-490.0,0.00016867,2]
[369035307,1751440261111,-490.0,0.00016867,2]
[369035308,1751440261121,-1310.6,0.00016867,2]
[369035309,1751440261131,-493.96484857,0.00016867,2]
[369035310,1751440261141,-490.0,0.00016867,2]
[369035311,1751440261150,-551.45,0.00016867,2]
[369035312,1751440261159,-553.82,0.00016867,2]
[369035313,1751440261168,-586.54,0.00016867,2]
[369035314,1751440261178,-490.0,0.00016867,2]
[369035315,1751440261187,-490.0,0.00016867,2]
[369035316,1751440261197,-540.98,0.00016867,2]
[369035317,1751440261206,-490.0,0.00016867,2]
[369035318,1751440261216,-490.0,0.00016867,2]
[369035319,1751440261225,-490.0,0.00016867,2]
[369035320,1751440261235,-490.0,0.00016867,2]
[369035321,1751440261244,-490.0,0.00016867,2]
[369035322,1751440261254,-490.0,0.00016867,2]
[369035323,1751440261263,-490.0,0.00016867,2]
[369035324,1751440261272,-490.0,0.00016867,2]
[369035325,1751440261281,-204.5585618,0.00016867,2]
[369035326,1751440261290,-490.0,0.00016867,2]
[369035327,1751440261299,-490.0,0.00016867,2]
[369035328,1751440261308,-789.02,0.00016867,2]
[369035329,1751440261318,-490.0,0.00016867,2]
[369035330,1751440261328,-490.0,0.00016867,2]
[369035331,1751440261338,-490.0,0.00016867,2]
[369035332,1751440261347,-490.0,0.00016867,2]
[369035333,1751440261356,-490.0,0.00016867,2]
[369035334,1751440261365,-490.0,0.00016867,2]
[369035335,1751440261375,-490.0,0.00016867,2]
[369035336,1751440261384,-490.0,0.00016867,2]
[369035337,1751440261393,-490.0,0.00016867,2]
[369035338,1751440261403,-490.0,0.00016867,2]
[369035339,1751440261411,-490.0,0.00016867,2]
[369035340,1751440261421,-490.0,0.00016867,2]
[369035341,1751440261430,-524.85,0.00016867,2]
[369035342,1751440261440,-490.0,0.00016867,2]
[369035343,1751440261451,-491.93621907,0.00016867,2]
[369035344,1751440261460,-490.0,0.00016867,2]
[369035345,1751440261469,-490.0,0.00016867,2]
[369035346,1751440261479,-490.0,0.00016867,2]
[369035347,1751440261490,-490.0,0.00016867,2]
[369035348,1751440261500,-490.0,0.00016867,2]
[369035349,1751440261509,-490.0,0.00016867,2]
[369035350,1751440261518,-490.0,0.00016867,2]
[369035351,1751440261527,-683.91,0.00016867,2]
[369035352,1751440261537,-490.0,0.00016867,2]
[369035353,1751440261546,-490.0,0.00016867,2]
[369035354,1751440261556,-1222.42,0.00016867,2]
[369035355,1751440261568,-490.0,0.00016867,2]
[369035356,1751440261578,-490.0,0.00016867,2]
[369035357,1751440261587,-645.39,0.00016867,2]
[369035358,1751440261596,-509.6486511,0.00016867,2]
[369035359,1751440261607,-490.0,0.00016867,2]
[369035360,1751440261616,-490.0,0.00016867,2]
[369035361,1751440261626,-490.0,0.00016867,2]
[369035362,1751440261635,-490.0,0.00016867,2]
[369035363,1751440261646,-491.54976272,0.00016867,2]
[369035364,1751440261655,-490.0,0.00016867,2]
[369035365,1751440261664,-582.78,0.00016867,2]
[369035366,1751440261673,-490.0,0.00016867,2]
[369035367,1751440261682,-490.0,0.00016867,2]
[369035368,1751440261692,-490.0,0.00016867,2]
[369035369,1751440261702,-490.0,0.00016867,2]
[369035370,1751440261712,-490.0,0.00016867,2]
[369035371,1751440261721,-490.0,0.00016867,2]
[369035372,1751440261731,-490.0,0.00016867,2]
[369035373,1751440261742,-490.0,0.00016867,2]
[369035374,1751440261752,-490.0,0.00016867,2]
[369035375,1751440261762,-496.74420151,0.00016867,2]
[369035376,1751440261771,-490.0,0.00016867,2]
[369035377,1751440261780,-490.0,0.00016867,2]
[369035378,1751440261789,-490.0,0.00016867,2]
[369035379,1751440261799,-490.0,0.00016867,2]
[369035380,1751440261808,-490.0,0.00016867,2]
[369035381,1751440261817,-490.0,0.00016867,2]
[369035382,1751440261827,-490.0,0.00016867,2]
[369035383,1751440261839,-902.18,0.00016867,2]
[369035384,1751440261848,-490.0,0.00016867,2]
[369035385,1751440261857,-490.0,0.00016867,2]
[369035386,1751440261867,-490.0,0.00016867,2]
[369035387,1751440261876,-490.0,0.00016867,2]
[369035388,1751440261886,-490.0,0.00016867,2]
[369035389,1751440261895,-490.0,0.00016867,2]
[369035390,1751440261905,-490.0,0.00016867,2]
[369035391,1751440261919,-490.0,0.00016867,2]
[369035392,1751440261929,-490.0,0.00016867,2]
[369035393,1751440261939,-512.58,0.00016867,2]
[369035394,1751440261948,-490.0,0.00016867,2]
[369035395,1751440261959,-490.0,0.00016867,2]
[369035396,1751440261968,-490.0,0.00016867,2]
[369035397,1751440261978,-490.0,0.00016867,2]
[369035398,1751440261988,-490.0,0.00016867,2]
[369035399,1751440261998,-490.0,0.00016867,2]
[369035400,1751440262007,-1047.16,0.00016867,2]
[369035401,1751440262018,-490.0,0.00016867,2]
[369035402,1751440262028,-490.0,0.00016867,2]
[369035403,1751440262037,-490.0,0.00016867,2]
[369035404,1751440262047,-490.0,0.00016867,2]
[369035405,1751440262057,-490.0,0.00016867,2]
[369035406,1751440262067,-490.0,0.00016867,2]
[369035407,1751440262076,-490.0,0.00016867,2]
[369035408,1751440262087,-657.55,0.00016867,2]
[369035409,1751440262105,-490.0,0.00016867,2]
[369035410,1751440262123,-766.74,0.00016867,2]
[369035411,1751440262142,-1421.78,0.00016867,2]
[369035412,1751440262159,-231.20866581,0.00016867,2]
[369035413,1751440262175,-490.0,0.00016867,2]
[369035414,1751440262195,-490.0,0.00016867,2]
[369035415,1751440262217,-1040.64,0.00016867,2]
[369035416,1751440262239,-490.0,0.00016867,2]
[369035417,1751440262260,-490.0,0.00016867,2]
[369035418,1751440262280,-490.0,0.00016867,2]
[369035419,1751440262293,-527.21,0.00016867,2]
[369035420,1751440262302,-1163.41,0.00016867,2]
[369035421,1751440262312,-490.0,0.00016867,2]
[369035422,1751440262322,-490.0,0.00016867,2]
[369035423,1751440262331,-490.0,0.00016867,2]
[369035424,1751440262340,-260.90056187,0.00016867,2]
[369035425,1751440262350,-490.0,0.00016867,2]
[369035426,1751440262360,-490.0,0.00016867,2]
[369035427,1751440262369,-664.09,0.00016867,2]
[369035428,1751440262379,-1259.09,0.00016867,2]
[369035429,1751440262388,-394.07557632,0.00016867,2]
[369035430,1751440262398,-496.18540664,0.00016867,2]
[369035431,1751440262407,-490.0,0.00016867,2]
[369035432,1751440262416,-490.0,0.00016867,2]
[369035433,1751440262426,-490.0,0.00016867,2]
[369035434,1751440262435,-1078.81,0.00016867,2]
[369035435,1751440262445,-490.0,0.00016867,2]
[369035436,1751440262455,-490.0,0.00016867,2]
[369035437,1751440262464,-498.83,0.00016867,2]
[369035438,1751440262474,-490.0,0.00016867,2]
[369035439,1751440262483,-490.0,0.00016867,2]
[369035440,1751440262493,-490.0,0.00016867,2]
[369035441,1751440262503,-490.0,0.00016867,2]
[369035442,1751440262512,-611.48,0.00016867,2]
[369035443,1751440262522,-490.0,0.00016867,2]
[369035444,1751440262532,-490.0,0.00016867,2]
[369035445,1751440262541,-490.0,0.00016867,2]
[369035446,1751440262551,-939.69,0.00016867,2]
[369035447,1751440262745,-490.0,0.00016867,2]
[369035448,1751440262762,-490.0,0.00016867,2]
[369035449,1751440262771,-490.0,0.00016867,2]
[369035450,1751440262781,-490.0,0.00016867,2]
[369035451,1751440262791,-490.0,0.00016867,2]
[369035452,1751440262800,-1361.3,0.00016867,2]
[369035453,1751440262810,-490.0,0.00016867,2]
[369035454,1751440262820,-809.32,0.00016867,2]
[369035455,1751440262829,-384.29806654,0.00016867,2]
[369035456,1751440262839,-621.51386756,0.00016867,2]
[369035457,1751440262848,-490.0,0.00016867,2]
[369035458,1751440262858,-440.08249058,0.00016867,2]
[369035459,1751440262868,-490.0,0.00016867,2]
[369035460,1751440262878,-490.0,0.00016867,2]
[369035461,1751440262887,-490.0,0.00016867,2]
[369035462,1751440262898,-490.0,0.00016867,2]
[369035463,1751440262908,-490.0,0.00016867,2]
[369035464,1751440262917,-592.79,0.00016867,2]
[369035465,1751440262926,-490.0,0.00016867,2]
[369035466,1751440262935,-1954.29,0.00016867,2]
[369035467,1751440262944,-490.0,0.00016867,2]
[369035468,1751440262954,-485.47630988,0.00016867,2]
[369035469,1751440262963,-1066.42,0.00016867,2]
[369035470,1751440262972,-490.0,0.00016867,2]
[369035471,1751440262981,-490.0,0.00016867,2]
[369035472,1751440262990,-591.66,0.00016867,2]
[369035473,1751440262999,-834.76,0.00016867,2]
[369035474,1751440263009,-490.0,0.00016867,2]
[369035475,1751440263018,-490.0,0.00016867,2]
[369035476,1751440263027,-490.0,0.00016867,2]
[369035477,1751440263037,-1310.75,0.00016867,2]
[369035478,1751440263047,-490.0,0.00016867,2]
[369035479,1751440263057,-490.0,0.00016867,2]
[369035480,1751440263066,-490.0,0.00016867,2]
[369035481,1751440263077,-490.0,0.00016867,2]
[369035482,1751440263086,-500.0,0.00016867,2]
[369035483,1751440263096,-490.0,0.00016867,2]
[369035484,1751440263106,-490.0,0.00016867,2]
[369035485,1751440263116,-490.0,0.00016867,2]
[369035486,1751440263127,-490.0,0.00016867,2]
[369035487,1751440263137,-490.0,0.00016867,2]
[369035488,1751440263147,-490.0,0.00016867,2]
[369035489,1751440263157,-490.0,0.00016867,2]
[369035490,1751440263167,-1160.83,0.00016867,2]
[369035491,1751440263176,-490.0,0.00016867,2]
[369035492,1751440263186,-490.0,0.00016867,2]
[369035493,1751440263196,-490.0,0.00016867,2]
[369035494,1751440263205,-490.0,0.00016867,2]
[369035495,1751440263215,-491.59123408,0.00016867,2]
[369035496,1751440263225,-490.0,0.00016867,2]
[369035497,1751440263236,-490.0,0.00016867,2]
[369035498,1751440263246,-490.0,0.00016867,2]
[369035499,1751440263256,-490.0,0.00016867,2]
[369035500,1751440263266,-490.0,0.00016867,2]
[369035501,1751440263276,-500.0,0.00016867,2]
[369035502,1751440263286,-506.85699296,0.00016867,2]
[369035503,1751440263295,-490.0,0.00016867,2]
[369035504,1751440263305,-490.0,0.00016867,2]
[369035505,1751440263315,-490.0,0.00016867,2]
[369035506,1751440263324,-490.0,0.00016867,2]
[369035507,1751440263334,-490.0,0.00016867,2]
[369035508,1751440263344,-490.0,0.00016867,2]
[369035509,1751440263354,-490.0,0.00016867,2]
[369035510,1751440263363,-2762.26,0.00016867,2]
[369035511,1751440263374,-490.0,0.00016867,2]
[369035512,1751440263384,-2999.77,0.00016867,2]
[369035513,1751440263393,-490.0,0.00016867,2]
[369035514,1751440263404,-490.0,0.00016867,2]
[369035515,1751440263414,-490.0,0.00016867,2]
[369035516,1751440263425,-490.0,0.00016867,2]
[369035517,1751440263435,-490.0,0.00016867,2]
[369035518,1751440263445,-512.15,0.00016867,2]
[369035519,1751440263455,-490.0,0.00016867,2]
[369035520,1751440263465,-490.0,0.00016867,2]
[369035521,1751440263475,-490.0,0.00016867,2]
[369035522,1751440263484,-490.0,0.00016867,2]
[369035523,1751440263495,-1778.94,0.00016867,2]
[369035524,1751440263504,-490.0,0.00016867,2]
[369035525,1751440263514,-490.0,0.00016867,2]
[369035526,1751440263525,-997.93,0.00016867,2]
[369035527,1751440263535,-490.90933833,0.00016867,2]
[369035528,1751440263544,-490.0,0.00016867,2]
[369035529,1751440263554,-490.0,0.00016867,2]
[369035530,1751440263566,-493.30617828,0.00016867,2]
[369035531,1751440263578,-490.0,0.00016867,2]
[369035532,1751440263588,-968.42,0.00016867,2]
[369035533,1751440263600,-490.0,0.00016867,2]
[369035534,1751440263611,-490.0,0.00016867,2]
[369035535,1751440263621,-490.0,0.00016867,2]
[369035536,1751440263631,-2254.77,0.00016867,2]
[369035537,1751440263642,-490.0,0.00016867,2]
[369035538,1751440263653,-490.0,0.00016867,2]
[369035539,1751440263663,-490.0,0.00016867,2]
[369035540,1751440263674,-150.33024304,0.00016867,2]
[369035541,1751440263684,-490.0,0.00016867,2]
[369035542,1751440263694,-490.0,0.00016867,2]
[369035543,1751440263704,-490.0,0.00016867,2]
[369035544,1751440263714,-1207.25,0.00016867,2]
[369035545,1751440263723,-490.0,0.00016867,2]
[369035546,1751440263733,-490.0,0.00016867,2]
[369035547,1751440263744,-3113.51,0.00016867,2]
[369035548,1751440263754,-490.0,0.00016867,2]
[369035549,1751440263763,-490.0,0.00016867,2]
[369035550,1751440263772,-490.0,0.00016867,2]
[369035551,1751440263782,-490.0,0.00016867,2]
[369035552,1751440263792,-1329.81,0.00016867,2]
[369035553,1751440263802,-335.27631483,0.00016867,2]
[369035554,1751440263812,-490.0,0.00016867,2]
[369035555,1751440263822,-490.0,0.00016867,2]
[369035556,1751440263832,-493.05478713,0.00016867,2]
[369035557,1751440263841,-490.0,0.00016867,2]
[369035558,1751440263851,-1042.63,0.00016867,2]
[369035559,1751440263860,-490.0,0.00016867,2]
[369035560,1751440263870,-914.13,0.00016867,2]
[369035561,1751440263881,-490.0,0.00016867,2]
[369035562,1751440263891,-490.0,0.00016867,2]
[369035563,1751440263901,-3011.02,0.00016867,2]
[369035564,1751440263911,-490.0,0.00016867,2]
[369035565,1751440263921,-490.0,0.00016867,2]
[369035566,1751440263931,-1316.77,0.00016867,2]
[369035567,1751440263941,-490.0,0.00016867,2]
[369035568,1751440263951,-207.99530044,0.00016867,2]
[369035569,1751440263961,-490.0,0.00016867,2]
[369035570,1751440263970,-490.0,0.00016867,2]
[369035571,1751440263981,-490.0,0.00016867,2]
[369035572,1751440263991,-490.0,0.00016867,2]
[369035573,1751440264001,-490.0,0.00016867,2]
[369035574,1751440264012,-4217.47,0.00016867,2]
[369035575,1751440264023,-490.0,0.00016867,2]
[369035576,1751440264033,-1500.0,0.00016867,2]
[369035577,1751440264043,-494.0969712,0.00016867,2]
[369035578,1751440264053,-490.0,0.00016867,2]
[369035579,1751440264062,-490.0,0.00016867,2]
[369035580,1751440264072,-917.29,0.00016867,2]
[369035581,1751440264082,-490.0,0.00016867,2]
[369035582,1751440264097,-667.95,0.00016867,2]
[369035583,1751440264106,-490.0,0.00016867,2]
[369035584,1751440264116,-490.0,0.00016867,2]
[369035585,1751440264126,-263.99945664,0.00016867,2]
[369035586,1751440264135,-492.53540493,0.00016867,2]
[369035587,1751440264145,-490.0,0.00016867,2]
[369035588,1751440264154,-4935.27,0.00016867,2]
[369035589,1751440264164,-490.0,0.00016867,2]
[369035590,1751440264174,-490.0,0.00016867,2]
[369035591,1751440264183,-490.0,0.00016867,2]
[369035592,1751440264193,-490.0,0.00016867,2]
[369035593,1751440264205,-542.1,0.00016867,2]
[369035594,1751440264215,-490.0,0.00016867,2]
[369035595,1751440264226,-547.76,0.00016867,2]
[369035596,1751440264236,-490.0,0.00016867,2]
[369035597,1751440264246,-490.0,0.00016867,2]
[369035598,1751440264256,-807.03,0.00016867,2]
[369035599,1751440264267,-490.0,0.00016867,2]
[369035600,1751440264276,-704.41,0.00016867,2]
[369035601,1751440264287,-1462.69,0.00016867,2]
[369035602,1751440264298,-462.28821239,0.00016867,2]
[369035603,1751440264308,-490.0,0.00016867,2]
[369035604,1751440264319,-834.63,0.00016867,2]
[369035605,1751440264328,-490.0,0.00016867,2]
[369035606,1751440264338,-490.0,0.00016867,2]
[369035607,1751440264349,-490.0,0.00016867,2]
[369035608,1751440264359,-1000.0,0.00016867,2]
[369035609,1751440264369,-493.64724189,0.00016867,2]
[369035610,1751440264379,-2873.57,0.00016867,2]
[369035611,1751440264390,-490.0,0.00016867,2]
[369035612,1751440264400,-490.0,0.00016867,2]
[369035613,1751440264410,-490.0,0.00016867,2]
[369035614,1751440264420,-490.0,0.00016867,2]
[369035615,1751440264430,-490.0,0.00016867,2]
[369035616,1751440264440,-490.0,0.00016867,2]
[369035617,1751440264450,-490.0,0.00016867,2]
[369035618,1751440264466,-490.0,0.00016867,2]
[369035619,1751440264476,-490.0,0.00016867,2]
[369035620,1751440264487,-498.22,0.00016867,2]
[369035621,1751440264497,-512.93,0.00016867,2]
[369035622,1751440264507,-449.91558719,0.00016867,2]
[369035623,1751440264517,-1288.31,0.00016867,2]
[369035624,1751440264527,-421.28242388,0.00016867,2]
[369035625,1751440264538,-490.0,0.00016867,2]
[369035626,1751440264548,-490.0,0.00016867,2]
[369035627,1751440264559,-500.54561515,0.00016867,2]
[369035628,1751440264571,-1226.44,0.00016867,2]
[369035629,1751440264581,-490.0,0.00016867,2]
[369035630,1751440264591,-490.0,0.00016867,2]
[369035631,1751440264601,-490.0,0.00016867,2]
[369035632,1751440264614,-490.0,0.00016867,2]
[369035633,1751440264624,-500.0,0.00016867,2]
[369035634,1751440264635,-680.26,0.00016867,2]
[369035635,1751440264647,-490.0,0.00016867,2]
[369035636,1751440264657,-490.0,0.00016867,2]
[369035637,1751440264667,-490.0,0.00016867,2]
[369035638,1751440264677,-490.0,0.00016867,2]
[369035639,1751440264686,-492.73454675,0.00016867,2]
[369035640,1751440264696,-233.84818223,0.00016867,2]
[369035641,1751440264709,-758.4,0.00016867,2]
[369035642,1751440264718,-490.0,0.00016867,2]
[369035643,1751440264728,-851.94,0.00016867,2]
[369035644,1751440264737,-491.68453782,0.00016867,2]
[369035645,1751440264749,-498.84809614,0.00016867,2]
[369035646,1751440264759,-812.05,0.00016867,2]
[369035647,1751440264769,-490.0,0.00016867,2]
[369035648,1751440264780,-2520.64,0.00016867,2]
[369035649,1751440264791,-490.0,0.00016867,2]
[369035650,1751440264800,-490.0,0.00016867,2]
[369035651,1751440264810,-490.0,0.00016867,2]
[369035652,1751440264820,-490.0,0.00016867,2]
[369035653,1751440264830,-490.0,0.00016867,2]
[369035654,1751440264840,-1116.13,0.00016867,2]
[369035655,1751440264851,-490.0,0.00016867,2]
[369035656,1751440264862,-2085.04,0.00016867,2]
[369035657,1751440264872,-607.14,0.00016867,2]
[369035658,1751440264882,-490.0,0.00016868,2]
[369035659,1751440264892,-292.45323618,0.00016868,2]
[369035660,1751440264902,-490.0,0.00016868,2]
[369035661,1751440264912,-224.82033132,0.00016868,2]
[369035662,1751440264921,-490.0,0.00016868,2]
[369035663,1751440264931,-490.0,0.00016868,2]
[369035664,1751440264941,-604.89,0.00016868,2]
[369035665,1751440264951,-490.0,0.00016868,2]
[369035666,1751440264964,-490.0,0.00016868,2]
[369035667,1751440264974,-490.0,0.00016868,2]
[369035668,1751440264983,-490.0,0.00016868,2]
[369035669,1751440264994,-490.0,0.00016868,2]
[369035670,1751440265004,-490.0,0.00016868,2]
[369035671,1751440265014,-490.0,0.00016868,2]
[369035672,1751440265026,-490.0,0.00016868,2]
[369035673,1751440265037,-495.47020718,0.00016868,2]